bitfinex-derivatives/quotes_ETHF0:USTF0_20240910
["timestamp","ask_amount","ask_price","bid_price","bid_amount"]
[1725980576146,1.06888,2338.8,2338.3,0.759]
[1725980576350,0.42761,2338.5,2338.3,0.759]
[1725980577051,1.06878,2339.0,2338.3,0.759]
[1725980577251,0.42758,2338.7,2338.4,0.42761]
[1725980577457,4.49193466,2339.1,2338.4,0.42761]
[1725980577458,0.42758,2338.6,2338.4,0.42761]
[1725980578047,1.06888,2338.8,2338.3,0.759]
[1725980578250,0.42761,2338.5,2338.3,0.759]
[1725980578859,0.42761,2338.5,2338.3,1.18663]
[1725980579452,0.42759,2338.6,2338.4,0.42762]
[1725980579645,1.06882,2338.9,2338.3,0.759]
[1725980579646,0.4276,2338.5,2338.3,1.18663]
[1725980580350,0.42762,2338.4,2338.3,0.3846]
[1725980580664,8.19193466,2339.1,2337.8,0.4022]
[1725980580665,1.06902,2338.5,2337.8,0.4022]
[1725980580846,1.06902,2338.5,2338.0,0.42768]
[1725980580847,0.42765,2338.2,2338.0,0.42768]
[1725980581157,0.42768,2338.1,2337.9,0.82141]
[1725980581348,0.42769,2338.0,2337.9,0.3937]
[1725980581547,1.11123248,2338.7,2337.8,0.4053]
[1725980581548,0.42771,2337.9,2337.8,0.4053]
[1725980581861,0.42773,2337.8,2337.4,1.20078]
[1725980582061,1.06919,2338.1,2337.4,0.773]
[1725980582251,0.42775,2337.7,2337.4,0.773]
[1725980582456,1.06923,2338.0,2337.4,0.773]
[1725980582654,0.42775,2337.7,2337.4,0.773]
[1725980583053,2.18040248,2338.2,2337.5,0.42777]
[1725980583356,10.54842264,2338.1,2337.5,0.42777]
[1725980583551,0.42772,2337.9,2337.5,0.42777]
[1725980583751,0.42773,2337.8,2337.4,1.20079]
[1725980583952,0.42773,2337.8,2337.4,0.773]
[1725980584151,0.42772,2337.9,2337.5,0.42778]
[1725980584347,0.42774,2337.8,2337.4,1.20079]
[1725980584863,0.42776,2337.7,2337.4,0.773]
[1725980585059,0.42776,2337.7,2337.4,1.2008]
[1725980585256,0.42774,2337.8,2337.4,1.2008]
[1725980585448,2.77995644,2338.0,2337.4,0.773]
[1725980585648,0.42771,2337.9,2337.5,0.42777]
[1725980586155,0.42771,2337.9,2337.2,0.384]
[1725980586156,1.11123248,2337.9,2337.2,0.384]
[1725980586356,0.42782,2337.3,2337.2,0.384]
[1725980586755,0.42782,2337.3,2336.3,0.216]
[1725980586756,0.42798,2336.4,2336.3,0.216]
[1725980586957,4.81792192,2336.8,2336.1,2.10610602]
[1725980587158,1.06983,2336.7,2336.1,0.7683]
[1725980587361,0.42802,2336.2,2336.1,0.3961]
[1725980587864,10.2808,2336.2,2335.7,0.3952]
[1725980588067,1.11792192,2336.2,2335.7,0.3952]
[1725980588359,1.11792192,2336.3,2335.7,0.3952]
[1725980588670,1.07001,2336.3,2335.5,0.377]
[1725980588866,10.6041168,2336.2,2335.4,0.3799]
[1725980589061,0.42808,2335.9,2335.4,0.3799]
[1725980589263,0.42812,2335.7,2335.4,0.3799]
[1725980589764,1.11792192,2336.2,2335.4,0.3799]
[1725980589965,5.1728889,2336.3,2335.4,0.3799]
[1725980590164,11.28891263,2336.0,2335.4,0.3799]
[1725980590364,0.42808,2335.9,2335.4,0.80806]
[1725980590662,4.05496698,2336.3,2335.4,0.3799]
[1725980590663,0.35496698,2336.3,2335.4,0.3799]
[1725980590869,0.42803,2336.2,2335.4,0.3799]
[1725980591068,11.02434794,2336.2,2335.6,0.42812]
[1725980591269,10.59631794,2336.2,2335.7,0.42811]
[1725980591457,0.42802,2336.2,2335.7,0.42811]
[1725980591767,0.428,2336.3,2335.8,0.3936]
[1725980592159,0.428,2336.3,2335.8,0.82168]
[1725980592470,0.42799,2336.4,2335.9,0.42807]
[1725980592667,10.84261826,2336.5,2336.0,0.42806]
[1725980593665,10.84261826,2336.5,2335.8,0.3936]
[1725980593866,4.81792192,2337.1,2335.8,4.0936]
[1725980594069,0.42792,2336.8,2336.4,0.42798]
[1725980594273,0.42792,2336.8,2336.5,40.8]
[1725980594472,0.42793,2336.7,2336.3,0.42799]
[1725980594967,0.42792,2336.8,2336.4,41.22797]
[1725980595177,10.65015603,2337.0,2336.4,40.8]
[1725980595361,0.42794,2336.7,2336.4,40.8]
[1725980595563,0.42794,2336.7,2336.4,41.22798]
[1725980595873,0.42795,2336.6,2336.2,0.428]
[1725980596075,0.42795,2336.6,2336.1,0.3833]
[1725980596076,0.42795,2336.6,2336.3,0.428]
[1725980596275,0.42795,2336.6,2336.3,40.8]
[1725980596474,11.71985603,2337.0,2336.3,40.8]
[1725980596475,1.06973,2336.9,2336.3,40.8]
[1725980596879,0.42799,2336.4,2336.1,0.3833]
[1725980597067,0.42801,2336.3,2336.1,0.3833]
[1725980597571,3.7,2336.6,2336.1,0.3833]
[1725980597572,0.42802,2336.2,2336.1,0.3833]
[1725980597777,0.42802,2336.2,2335.8,0.3936]
[1725980597778,1.06992,2336.5,2335.8,0.82168]
[1725980597970,0.42804,2336.2,2335.8,0.82168]
[1725980598169,0.42804,2336.1,2335.8,0.82168]
[1725980598375,0.42807,2336.0,2335.6,0.80962]
[1725980598573,0.4281,2335.8,2335.6,0.3815]
[1725980599271,1.07006,2336.2,2335.6,0.3815]
[1725980599472,0.42807,2336.0,2335.7,0.42811]
[1725980599673,0.4281,2335.8,2335.6,0.3815]
[1725980599871,0.42809,2335.9,2335.6,0.3815]
[1725980600073,0.42809,2335.9,2335.6,0.80963]
[1725980600275,0.42807,2336.0,2335.7,0.42811]
[1725980600578,0.42807,2336.0,2335.6,0.80962]
[1725980600773,0.42808,2335.9,2335.6,0.80962]
[1725980601370,10.76113093,2336.1,2335.6,0.3815]
[1725980601572,0.42807,2336.0,2335.7,0.4281]
[1725980601775,10.76113093,2336.1,2335.6,0.3815]
[1725980602074,10.76113093,2336.1,2335.8,0.42809]
[1725980602075,0.42805,2336.1,2335.8,0.42809]
[1725980602667,0.42803,2336.2,2335.9,0.42807]
[1725980602977,0.42804,2336.1,2335.6,0.3815]
[1725980603373,0.42806,2336.0,2335.7,0.4281]
[1725980603573,0.42811,2335.8,2335.6,0.3815]
[1725980603776,0.42811,2335.8,2335.6,0.80963]
[1725980603970,0.42811,2335.8,2335.6,0.3815]
[1725980604179,0.42807,2336.0,2335.8,0.42809]
[1725980604379,0.42808,2335.9,2335.7,0.4281]
[1725980604679,0.42807,2336.0,2335.8,0.42808]
[1725980604978,0.42808,2335.9,2335.7,0.4281]
[1725980605978,3.7,2336.3,2335.6,0.3815]
[1725980606179,0.42806,2336.0,2335.8,0.42808]
[1725980606373,4.77003,2336.3,2335.6,0.3815]
[1725980606374,0.42805,2336.1,2335.6,0.3815]
[1725980606576,0.42806,2336.0,2335.8,0.42808]
[1725980606779,0.42805,2336.1,2335.9,0.42807]
[1725980606977,0.42806,2336.0,2335.9,0.42807]
[1725980607178,0.42806,2336.0,2335.8,0.42808]
[1725980608181,0.42806,2336.0,2335.9,0.42807]
[1725980608574,0.42806,2336.0,2335.6,0.3815]
[1725980608575,0.42806,2336.0,2335.8,0.42808]
[1725980608879,0.42806,2336.0,2335.9,0.42807]
[1725980609472,0.42817,2335.4,2335.3,0.3827]
[1725980609771,0.42816,2335.5,2335.2,0.4282]
[1725980609972,1.07033,2335.6,2335.1,0.3857]
[1725980610280,4.77029,2335.7,2335.1,0.3857]
[1725980610483,0.42817,2335.4,2334.8,0.379]
[1725980610680,4.77029,2335.7,2334.8,0.379]
[1725980610681,0.4282,2335.3,2335.0,0.42823]
[1725980610978,3.7,2335.4,2334.9,0.3857]
[1725980611281,0.42819,2335.3,2335.0,0.42823]
[1725980611477,10.56330147,2335.6,2334.9,0.6044267]
[1725980611775,0.42814,2335.6,2334.9,0.6044267]
[1725980612081,0.42815,2335.5,2335.1,0.42821]
[1725980612276,1.07027,2335.8,2335.2,0.42819]
[1725980612483,0.42813,2335.6,2334.9,0.6044267]
[1725980612684,0.42813,2335.6,2335.3,0.42817]
[1725980613578,0.42815,2335.5,2335.2,0.42819]
[1725980613986,0.42812,2335.7,2334.9,0.6044267]
[1725980614173,0.42813,2335.6,2335.3,0.42818]
[1725980614781,10.74762298,2335.9,2334.9,4.3044267]
[1725980615085,0.42812,2335.7,2335.4,0.42815]
[1725980615276,0.42812,2335.7,2335.5,0.3924]
[1725980615578,0.42811,2335.7,2335.5,0.82054]
[1725980615782,0.42813,2335.6,2335.5,0.3924]
[1725980616682,4.77015,2336.0,2335.5,0.3924]
[1725980616683,1.07019,2335.9,2335.5,0.3924]
[1725980616889,1.07033,2335.6,2334.8,0.595]
[1725980617178,1.07033,2335.6,2334.8,1.19968]
[1725980617179,0.42824,2335.0,2334.8,1.19968]
[1725980617574,4.77046,2335.4,2334.8,1.19968]
[1725980617575,0.42823,2335.1,2334.8,1.19968]
[1725980618181,3.7,2335.4,2334.8,0.7714]
[1725980618373,0.4282,2335.3,2335.0,0.42823]
[1725980618574,1.07033,2335.6,2335.0,0.42823]
[1725980618784,0.4282,2335.2,2334.9,0.42825]
[1725980619174,11.77263837,2335.5,2334.9,0.42825]
[1725980619175,0.42822,2335.1,2334.9,0.42825]
[1725980619375,0.42824,2335.0,2334.8,0.7714]
[1725980619974,1.07049,2335.3,2334.8,0.7714]
[1725980620176,0.42826,2335.0,2334.8,0.7714]
[1725980620787,10.81441466,2335.2,2334.8,0.7714]
[1725980620972,0.42823,2335.1,2334.8,1.19967]
[1725980621287,0.42824,2335.0,2334.8,1.19967]
[1725980621685,10.81441466,2335.2,2334.5,0.21270443]
[1725980621885,0.42829,2334.8,2334.5,0.59300443]
[1725980622078,1.07056,2335.1,2334.6,0.42831]
[1725980622277,0.42827,2334.9,2334.6,0.4283]
[1725980623083,0.35848661,2335.5,2334.8,0.42826]
[1725980623381,0.42823,2335.1,2334.9,0.42826]
[1725980623690,0.42823,2335.1,2334.9,0.42825]
[1725980623983,0.42823,2335.1,2335.0,0.3803]
[1725980624288,1.07035,2335.6,2335.0,0.3803]
[1725980624483,0.42822,2335.1,2335.0,0.3803]
[1725980625385,0.42821,2335.2,2335.0,5.45782]
[1725980625586,0.42819,2335.3,2335.1,0.42821]
[1725980625888,0.42819,2335.3,2335.0,0.7472]
[1725980625889,11.76041819,2335.5,2335.0,0.3803]
[1725980626085,0.42822,2335.1,2335.0,0.3803]
[1725980626484,10.79527325,2335.4,2334.8,40.8]
[1725980626781,0.42832,2334.6,2334.3,0.216]
[1725980626989,3.7,2334.8,2334.1,0.7748]
[1725980627178,1.07079,2334.6,2334.1,1.6599]
[1725980627374,0.42836,2334.4,2334.2,0.42839]
[1725980627579,1.07074,2334.7,2334.1,0.846]
[1725980627883,0.42839,2334.2,2334.1,0.4567]
[1725980628282,4.77086,2334.5,2333.8,0.42845]
[1725980628283,0.42841,2334.1,2333.8,0.42845]
[1725980628492,0.42839,2334.2,2333.9,0.42843]
[1725980628882,0.42839,2334.2,2333.7,0.846]
[1725980629192,11.70041345,2334.4,2333.8,0.42845]
[1725980629379,0.4284,2334.1,2333.8,0.42845]
[1725980629587,0.42842,2334.1,2333.7,1.27447]
[1725980629791,0.42843,2334.0,2333.7,1.27447]
[1725980629985,0.42841,2334.1,2333.8,0.42846]
[1725980630486,11.91351345,2334.4,2333.9,0.42843]
[1725980630487,10.84263345,2334.4,2333.9,0.42843]
[1725980630688,10.84263345,2334.4,2333.7,0.846]
[1725980630689,0.42837,2334.3,2333.7,0.846]
[1725980630877,10.62953345,2334.4,2334.0,0.42841]
[1725980631084,0.42839,2334.2,2333.7,0.846]
[1725980631387,0.42839,2334.2,2333.8,0.42844]
[1725980632081,10.62953345,2334.4,2333.7,0.846]
[1725980632278,0.42837,2334.3,2333.9,0.42843]
[1725980632682,0.42841,2334.1,2333.8,0.42845]
[1725980632892,0.42841,2334.1,2333.7,1.27447]
[1725980633388,0.42843,2334.0,2333.7,1.27447]
[1725980634090,0.42842,2334.1,2333.8,0.42846]
[1725980634590,0.42839,2334.2,2333.9,0.42843]
[1725980635791,0.42838,2334.3,2333.7,0.846]
[1725980635998,0.42839,2334.2,2334.0,0.42841]
[1725980636193,0.42839,2334.2,2333.9,0.42843]
[1725980636900,0.42839,2334.2,2334.0,0.42842]
[1725980637097,4.144,2334.6,2334.1,4.284]
[1725980637288,4.08068,2334.9,2334.2,0.9062]
[1725980637595,10.96886759,2334.6,2334.3,0.447]
[1725980637787,3.01,2334.4,2333.7,0.4433]
[1725980637991,3.01,2334.0,2333.9,0.42843]
[1725980638196,3.43842,2334.0,2333.8,1.33835]
[1725980638492,3.01,2334.0,2333.9,40.8]
[1725980638898,3.01,2334.2,2334.0,0.42842]
[1725980639092,0.42842,2334.0,2333.8,0.9099]
[1725980639292,0.42842,2334.0,2333.8,42.13835]
[1725980639492,0.42842,2334.1,2333.8,42.13835]
[1725980639696,3.43842,2334.1,2333.8,42.13835]
[1725980639891,0.42842,2334.0,2333.8,42.13835]
[1725980640091,3.01,2334.1,2333.9,0.42843]
[1725980640399,3.01,2334.1,2333.8,41.7099]
[1725980640800,0.42842,2334.0,2333.8,42.13834]
[1725980640989,3.43841,2334.1,2333.9,0.42844]
[1725980641189,0.42844,2333.9,2333.8,0.447]
[1725980641498,0.42844,2333.9,2333.7,0.42847]
[1725980641499,10.76795887,2333.9,2333.7,0.42847]
[1725980641697,0.42845,2333.9,2333.7,0.42847]
[1725980641899,0.42845,2333.9,2333.8,0.4608]
[1725980642097,0.42848,2333.7,2333.4,0.4765]
[1725980642299,0.4285,2333.6,2333.5,0.4462]
[1725980642492,0.42849,2333.7,2333.5,0.4462]
[1725980642698,3.7,2333.8,2333.2,0.89346]
[1725980642895,0.42855,2333.3,2333.2,0.9111]
[1725980643094,0.42855,2333.3,2332.7,0.90345]
[1725980643095,4.2856,2333.3,2332.7,0.90345]
[1725980643295,4.2856,2333.3,2332.7,0.921]
[1725980643296,0.42863,2332.9,2332.7,0.921]
[1725980643505,4.77144,2333.2,2332.2,40.8]
[1725980643803,4.77144,2333.2,2332.1,0.9111]
[1725980643804,3.7,2332.3,2332.1,0.9111]
[1725980644101,1.07158,2332.9,2332.1,0.9111]
[1725980644102,3.7,2332.5,2332.1,0.9111]
[1725980644407,14.60296653,2333.1,2332.1,0.9111]
[1725980644408,8.2726,2333.1,2332.1,0.9111]
[1725980644615,3.7,2333.1,2332.1,0.9111]
[1725980644895,10.53303782,2332.9,2332.5,0.42869]
[1725980645097,10.53303782,2333.0,2332.6,0.4649]
[1725980645290,4.12859,2333.1,2332.7,0.4355]
[1725980645487,10.91750323,2333.0,2332.7,0.4355]
[1725980646094,0.42862,2332.9,2332.7,0.4355]
[1725980646299,14.77528323,2333.0,2332.0,0.216]
[1725980646497,1.42482332,2333.3,2332.1,1.33636]
[1725980646498,14.90779629,2332.8,2332.1,1.33636]
[1725980646696,0.42867,2332.7,2332.1,0.9076]
[1725980647099,11.16449756,2332.7,2332.1,0.9076]
[1725980647603,10.73582756,2332.7,2332.1,1.33636]
[1725980648303,10.73582756,2332.7,2332.2,0.42875]
[1725980649005,11.16448756,2332.7,2332.1,1.33637]
[1725980649195,10.73582756,2332.7,2332.1,0.9076]
[1725980649390,4.12871,2332.5,2332.1,0.9076]
[1725980649697,10.96045546,2332.7,2332.2,0.42874]
[1725980649901,3.7,2332.8,2332.3,0.42873]
[1725980650104,11.39300685,2332.8,2332.2,0.42874]
[1725980650299,0.42865,2332.8,2332.2,0.42874]
[1725980650698,4.144,2332.9,2332.3,0.42873]
[1725980650699,10.96435685,2332.7,2332.3,0.42873]
[1725980651005,10.96435685,2332.7,2332.1,0.9076]
[1725980651006,10.66814627,2332.8,2332.4,0.4287]
[1725980651193,10.66814627,2332.8,2332.1,0.9076]
[1725980651398,0.42865,2332.8,2332.4,0.42871]
[1725980651797,0.42865,2332.8,2332.1,0.9076]
[1725980652000,0.42865,2332.8,2332.3,0.42872]
[1725980652200,4.57264,2332.9,2332.4,0.42872]
[1725980652402,0.42864,2332.8,2332.4,0.42872]
[1725980652601,0.42867,2332.7,2332.2,0.42875]
[1725980652798,0.42867,2332.7,2332.3,0.42873]
[1725980653198,10.98572405,2332.8,2332.4,0.42871]
[1725980653406,10.55707405,2332.8,2332.1,0.9076]
[1725980653601,4.144,2332.9,2332.1,1.97953]
[1725980653911,7.844,2333.3,2332.2,1.07189]
[1725980654110,0.42857,2333.2,2332.8,0.42863]
[1725980654309,11.39277028,2333.2,2332.9,0.9023]
[1725980654508,11.39278028,2333.2,2332.9,1.33092]
[1725980654707,8.20155593,2333.6,2332.9,0.9023]
[1725980654912,0.42851,2333.6,2332.9,0.9023]
[1725980655103,7.844,2333.9,2333.0,0.4335]
[1725980655299,0.42849,2333.7,2333.4,0.42853]
[1725980655510,0.42849,2333.7,2333.5,0.4491]
[1725980656415,0.42848,2333.7,2333.5,0.4491]
[1725980656706,0.4285,2333.6,2333.5,0.4491]
[1725980656909,0.42854,2333.4,2333.1,41.22858]
[1725980657111,11.67805546,2333.8,2333.2,0.42857]
[1725980657112,11.0100886,2333.6,2333.2,0.42857]
[1725980657310,3.7,2333.9,2333.2,0.42857]
[1725980657518,10.5815786,2333.7,2333.2,0.42857]
[1725980657703,0.42849,2333.7,2333.3,0.42854]
[1725980657902,1.07116,2333.8,2333.0,41.6826]
[1725980658106,0.42852,2333.5,2333.0,0.8826]
[1725980658306,14.4532804,2333.6,2333.1,0.42858]
[1725980658307,0.42854,2333.4,2333.1,0.42858]
[1725980658707,0.42852,2333.5,2333.1,0.42858]
[1725980658903,0.42854,2333.4,2333.1,0.42858]
[1725980659106,0.42853,2333.5,2333.2,0.42856]
[1725980659307,0.42852,2333.5,2333.2,0.42856]
[1725980659607,10.84852591,2333.7,2333.0,0.8826]
[1725980659608,11.27701591,2333.7,2333.0,0.8826]
[1725980659919,0.4285,2333.6,2333.3,0.42853]
[1725980660112,0.4285,2333.6,2333.0,0.8826]
[1725980660113,10.75605817,2333.8,2333.1,1.07148]
[1725980660306,0.4285,2333.6,2333.3,0.42853]
[1725980660506,0.426,2334.0,2333.4,0.42853]
[1725980660507,0.42849,2333.7,2333.4,0.42853]
[1725980661012,0.42849,2333.7,2333.5,0.47]
[1725980661408,1.07111,2333.9,2333.5,0.47]
[1725980661609,4.144,2334.2,2333.7,0.42847]
[1725980661911,8.05783,2334.5,2333.6,0.4635]
[1725980661912,0.42846,2333.8,2333.6,0.4635]
[1725980662112,11.60385008,2334.1,2333.6,0.4635]
[1725980662113,3.7,2334.0,2333.6,0.4635]
[1725980662309,0.42847,2333.8,2333.6,0.4635]
[1725980663203,0.42847,2333.8,2333.5,0.89851]
[1725980663709,11.60394008,2333.9,2333.5,0.47]
[1725980663910,0.4285,2333.6,2333.5,0.47]
[1725980664117,10.74521008,2333.9,2333.5,0.47]
[1725980664118,0.42848,2333.7,2333.5,0.47]
[1725980664513,0.2124,2333.9,2333.5,0.47]
[1725980664514,0.4285,2333.6,2333.5,0.47]
[1725980664709,0.42846,2333.8,2333.5,0.8985]
[1725980664907,10.96937008,2333.8,2333.6,0.42849]
[1725980665113,10.96937008,2333.8,2333.7,0.42848]
[1725980665613,0.4248,2334.4,2333.7,0.42848]
[1725980665614,3.7,2334.6,2333.8,1.07116]
[1725980665810,1.07074,2334.7,2334.2,0.42838]
[1725980666011,11.26818772,2334.5,2334.2,0.42838]
[1725980666209,0.42832,2334.6,2334.3,0.42837]
[1725980666414,0.42834,2334.5,2334.3,0.42837]
[1725980666620,0.42835,2334.4,2334.2,0.42838]
[1725980666914,1.07074,2334.7,2334.2,0.42837]
[1725980666915,0.42834,2334.5,2334.2,0.42837]
[1725980667106,0.42835,2334.4,2334.2,0.42837]
[1725980667306,0.42838,2334.3,2334.1,0.4284]
[1725980668423,11.28738624,2334.6,2334.0,0.4757]
[1725980668623,10.85906624,2334.6,2334.5,0.42833]
[1725980668819,11.28738624,2334.6,2334.4,0.42835]
[1725980669116,10.85906624,2334.6,2334.4,0.42835]
[1725980669321,0.42831,2334.7,2334.4,0.42835]
[1725980669716,3.7,2334.9,2334.4,0.42835]
[1725980669926,0.4283,2334.7,2334.4,0.42835]
[1725980670120,11.13250677,2334.8,2334.1,0.2192894]
[1725980670311,0.2124,2335.0,2334.7,0.42829]
[1725980670312,0.42825,2335.0,2334.7,0.42829]
[1725980670519,4.144,2335.1,2334.9,0.42825]
[1725980670714,0.2126,2335.3,2334.7,0.42828]
[1725980670915,0.2126,2335.3,2334.8,0.87578]
[1725980671215,0.42823,2335.1,2334.8,0.87578]
[1725980672113,0.42822,2335.1,2334.8,0.4475]
[1725980672520,0.42822,2335.1,2334.8,0.87576]
[1725980673024,0.42825,2335.0,2334.8,0.4475]
[1725980673222,0.42826,2334.9,2334.6,0.4283]
[1725980673419,1.0707,2334.8,2334.3,4.6515]
[1725980673622,0.42834,2334.5,2334.3,0.9201]
[1725980673923,10.65595595,2334.7,2334.3,1.34846]
[1725980674123,10.65595595,2334.7,2334.3,0.9201]
[1725980674326,0.42836,2334.4,2334.1,0.4284]
[1725980674724,0.42834,2334.5,2334.2,0.42838]
[1725980675122,11.72672595,2334.7,2334.5,0.42832]
[1725980675123,10.65595595,2334.7,2334.5,0.42832]
[1725980675324,10.65595595,2334.7,2333.9,1.52571]
[1725980675524,0.42832,2334.6,2333.9,1.52571]
[1725980675727,0.42833,2334.5,2334.3,0.42836]
[1725980675925,0.42835,2334.4,2334.2,0.42838]
[1725980676628,0.42836,2334.4,2334.2,0.42837]
[1725980676828,10.65595595,2334.7,2334.0,0.21186622]
[1725980677025,0.42833,2334.6,2333.9,1.52569]
[1725980677218,10.93373071,2334.8,2333.9,0.4546]
[1725980677435,4.57221,2335.2,2334.9,0.42824]
[1725980677728,1.07033,2335.6,2335.0,0.4349]
[1725980678024,0.42821,2335.2,2335.0,0.4349]
[1725980678231,11.02895315,2335.3,2335.0,0.86313]
[1725980678420,0.42821,2335.2,2335.0,0.4349]
[1725980678726,10.60075315,2335.2,2335.0,0.4349]
[1725980678929,10.60075315,2335.2,2335.1,0.42822]
[1725980679127,0.42819,2335.3,2335.0,0.86313]
[1725980679429,0.42814,2335.6,2335.0,4.7173]
[1725980679636,3.7,2335.9,2335.1,0.4333]
[1725980679835,0.4244,2336.1,2335.1,0.9082]
[1725980680030,0.42812,2335.7,2335.1,0.9082]
[1725980680226,0.4281,2335.8,2335.1,0.9082]
[1725980680730,3.7,2335.9,2335.2,0.42819]
[1725980680924,0.42814,2335.6,2335.2,0.4282]
[1725980681725,3.7,2335.9,2335.1,0.9082]
[1725980682129,10.94837817,2335.8,2335.1,0.9082]
[1725980682529,0.42807,2336.0,2335.6,0.42812]
[1725980682838,0.42803,2336.2,2335.8,0.42808]
[1725980683024,4.144,2336.4,2335.9,0.42807]
[1725980683233,4.144,2336.4,2335.8,0.4627]
[1725980683425,0.42803,2336.2,2335.8,0.89079]
[1725980683831,4.144,2336.6,2335.8,0.4627]
[1725980684023,4.144,2336.6,2335.9,0.4554]
[1725980684024,0.42796,2336.6,2335.9,0.4554]
[1725980684228,0.64072,2336.8,2336.4,0.42797]
[1725980684426,0.42792,2336.8,2336.4,0.42797]
[1725980684632,10.55495802,2336.7,2336.5,0.4365]
[1725980684934,0.42793,2336.7,2336.5,0.4365]
[1725980685232,0.42788,2337.0,2336.6,0.42795]
[1725980685534,0.42788,2337.0,2336.6,0.42794]
[1725980685728,0.42788,2337.0,2336.5,0.4365]
[1725980685729,0.42786,2337.1,2336.7,0.42792]
[1725980685934,0.4279,2336.9,2336.5,0.4365]
[1725980686126,10.94268648,2337.1,2336.6,0.42795]
[1725980686328,10.94268648,2337.2,2336.5,0.86446]
[1725980686531,0.42789,2336.9,2336.5,0.86446]
[1725980686728,0.42789,2336.9,2336.5,0.4365]
[1725980686932,10.94268648,2337.2,2336.5,0.4365]
[1725980687141,0.4279,2336.9,2336.5,0.4365]
[1725980687328,0.42788,2337.0,2336.5,0.86445]
[1725980687533,10.94268648,2337.2,2336.5,0.86445]
[1725980687743,0.4279,2336.9,2336.5,0.4365]
[1725980688039,3.7,2337.0,2336.5,0.4365]
[1725980688339,10.5805574,2336.9,2336.5,0.4365]
[1725980688536,0.42794,2336.7,2336.5,0.4365]
[1725980689235,10.5805574,2336.9,2336.0,4.186]
[1725980689439,4.98253,2337.0,2336.1,0.4463]
[1725980689440,0.42798,2336.4,2336.1,0.4463]
[1725980689653,0.428,2336.3,2336.1,0.4463]
[1725980689856,3.7,2336.7,2335.8,0.4627]
[1725980689857,0.2128,2336.5,2335.8,0.4627]
[1725980690139,0.42799,2336.4,2335.9,0.87436]
[1725980690447,10.82206595,2336.6,2335.9,0.4463]
[1725980690631,0.42797,2336.5,2335.9,0.4463]
[1725980690831,0.42798,2336.4,2336.0,0.42804]
[1725980691231,0.42797,2336.5,2336.0,0.42804]
[1725980691436,0.42798,2336.4,2336.0,0.42804]
[1725980691639,0.42797,2336.5,2336.1,0.42804]
[1725980692035,0.42798,2336.4,2336.0,0.42805]
[1725980692237,0.42798,2336.4,2335.9,0.4463]
[1725980692238,10.82206595,2336.6,2335.9,0.87436]
[1725980692440,0.428,2336.3,2335.9,0.87436]
[1725980692640,10.82206595,2336.6,2335.9,0.4463]
[1725980692943,0.42797,2336.5,2336.1,0.42803]
[1725980693242,0.42796,2336.6,2336.1,0.42803]
[1725980693432,0.42796,2336.6,2336.2,0.42802]
[1725980693634,0.42796,2336.6,2335.9,0.65587417]
[1725980693635,11.1469531,2336.5,2336.1,0.42803]
[1725980693845,10.7189831,2336.5,2336.2,0.42802]
[1725980694145,11.1469431,2336.6,2336.2,0.42802]
[1725980694435,4.50202932,2336.8,2335.9,0.65587417]
[1725980694642,0.42798,2336.5,2336.1,0.42803]
[1725980694839,0.42799,2336.4,2336.1,0.42803]
[1725980695043,0.42796,2336.6,2336.2,0.42802]
[1725980695446,0.42797,2336.5,2336.2,0.42802]
[1725980695647,10.53190173,2336.7,2335.9,0.65587417]
[1725980695648,10.53190173,2336.7,2336.3,0.428]
[1725980695942,0.42793,2336.7,2336.4,0.4707]
[1725980696141,0.42795,2336.6,2336.4,0.4707]
[1725980696946,10.44631825,2336.8,2336.4,0.4707]
[1725980697249,0.42794,2336.7,2336.4,0.4707]
[1725980697447,0.42796,2336.5,2336.4,0.4707]
[1725980698132,0.42801,2336.3,2336.0,0.89785]
[1725980698338,1.06984,2336.7,2336.2,0.42802]
[1725980698538,0.42797,2336.5,2336.2,0.42802]
[1725980698746,0.42798,2336.4,2336.1,0.42803]
[1725980698948,0.428,2336.4,2336.0,0.89784]
[1725980699242,0.42795,2336.6,2336.0,0.89784]
[1725980699243,0.42801,2336.3,2336.0,0.89784]
[1725980699444,1.06992,2336.5,2336.0,0.4698]
[1725980699650,1.06992,2336.5,2336.0,0.89785]
[1725980699651,11.60401753,2336.5,2336.0,0.89785]
[1725980699842,0.428,2336.3,2336.0,0.89785]
[1725980700441,0.42802,2336.2,2336.0,0.89785]
[1725980700747,0.42801,2336.3,2336.0,0.4698]
[1725980700947,0.42802,2336.3,2336.0,0.89785]
[1725980701147,1.06998,2336.4,2336.0,0.4698]
[1725980701349,0.42802,2336.2,2336.0,0.4698]
[1725980701541,11.92047664,2336.6,2336.0,0.4698]
[1725980701741,1.06989,2336.6,2336.0,0.4698]
[1725980701948,4.98234,2336.7,2336.1,0.42804]
[1725980702144,10.79908242,2336.5,2336.0,0.4698]
[1725980702346,8.0567,2337.0,2336.0,0.4698]
[1725980702347,1.06975,2336.9,2336.0,0.4698]
[1725980702538,0.42798,2336.4,2336.0,0.4698]
[1725980702739,0.42798,2336.4,2336.2,0.42802]
[1725980702945,1.06993,2336.5,2336.0,0.4698]
[1725980703247,10.86655851,2336.3,2335.5,4.186]
[1725980703446,0.42809,2335.8,2335.5,0.4724]
[1725980703638,0.42812,2335.7,2335.5,0.4724]
[1725980703841,0.42812,2335.7,2335.5,0.90055]
[1725980704247,0.42812,2335.7,2335.5,0.4724]